fUST/lending_fUST_20260518
["ID","MTS","AMOUNT","RATE_DAILY","PERIOD"]
[422563348,1779084650000,-11768.02,0.0001178,2]
[422563349,1779084650000,-1074.49,0.0001178,2]
[422563350,1779084650000,-2188.04277018,0.0001178,2]
[422563347,1779084650000,-500.0,0.0001178,2]
[422563352,1779084650000,-73.75598438,0.0001178,2]
[422563356,1779084650000,-500.0,0.0001178,2]
[422563354,1779084650000,-117.87379832,0.0001178,2]
[422563355,1779084650000,-668.79,0.0001178,2]
[422563353,1779084650000,-399.98620168,0.0001178,2]
[422563357,1779084650000,-43.7548432,0.0001178,2]
[422563358,1779084650000,-314.0,0.00011727,2]
[422563360,1779084650000,-2746.46,0.0001178,2]
[422563359,1779084650000,-5184.5651568,0.0001178,2]
[422563363,1779084650000,-961.43821141,0.0001178,2]
[422563362,1779084650000,-1237.66,0.0001178,2]
[422563361,1779084650000,-500.0,0.0001178,2]
[422563364,1779084650000,-4143.58178859,0.0001178,2]
[422563351,1779084650000,-255.10124544,0.0001178,2]
[422563376,1779084651000,-295.56042476,0.0001178,2]
[422563370,1779084651000,-500.0,0.0001178,2]
[422563378,1779084651000,-623.67,0.0001178,2]
[422563379,1779084651000,-2761.41814756,0.0001178,2]
[422563377,1779084651000,-191.82439779,0.0001178,2]
[422563366,1779084651000,-500.0,0.0001178,2]
[422563373,1779084651000,-925.32,0.0001178,2]
[422563369,1779084651000,-500.0,0.0001178,2]
[422563368,1779084651000,-500.0,0.0001178,2]
[422563367,1779084651000,-3180.63,0.0001178,2]
[422563365,1779084651000,-500.0,0.0001178,2]
[422563375,1779084651000,-8512.06517745,0.0001178,2]
[422563372,1779084651000,-501.26,0.0001178,2]
[422563371,1779084651000,-1044.08,0.0001178,2]
[422563380,1779084651000,-527.37060269,0.0001178,2]
[422563390,1779084651000,-500.0,0.0001178,2]
[422563374,1779084651000,-1484.42,0.0001178,2]
[422563385,1779084651000,-681.8411151,0.0001178,2]
[422563383,1779084651000,-286.8960639,0.0001178,2]
[422563381,1779084651000,-234.59124975,0.0001178,2]
[422563391,1779084651000,-2662.80575341,0.0001178,2]
[422563387,1779084651000,-314.0,0.00011727,2]
[422563389,1779084651000,-1758.51,0.0001178,2]
[422563384,1779084651000,-2664.222821,0.0001178,2]
[422563388,1779084651000,-1747.4619509,0.0001178,2]
[422563382,1779084651000,-510.38,0.0001178,2]
[422563386,1779084651000,-755.8180491,0.0001178,2]
[422563648,1779085846000,-300.0,0.00010856,2]
[422563641,1779085846000,-4317.87500145,9.95e-05,2]
[422563642,1779085846000,-349.73019246,0.0001027,2]
[422563640,1779085846000,-682.12499855,9.95e-05,2]
[422563644,1779085846000,-161.68513202,0.00010567,2]
[422563645,1779085846000,-160.0,0.00010567,2]
[422563646,1779085846000,-2077.62365067,0.00010758,2]
[422563658,1779085846000,-144041.56384429,0.00010858,2]
[422563643,1779085846000,-200.0,0.00010305,2]
[422563647,1779085846000,-185.0,0.00010837,2]
[422563650,1779085846000,-441.37747152,0.00010857,2]
[422563649,1779085846000,-238.94839769,0.00010857,2]
[422563652,1779085846000,-500.0,0.00010857,2]
[422563651,1779085846000,-446.52044825,0.00010857,2]
[422563654,1779085846000,-326.12727465,0.00010857,2]
[422563653,1779085846000,-500.0,0.00010857,2]
[422563656,1779085846000,-15159.47215971,0.00010858,2]
[422563657,1779085846000,-288.07357235,0.00010858,2]
[422563659,1779085846000,-34258.06788533,0.00010858,2]
[422563660,1779085847000,-7219.44329605,0.00010858,2]
[422563667,1779085847000,-7751.84958433,0.00010858,2]
[422563668,1779085847000,-33233.68855512,0.00010858,2]
[422563662,1779085847000,-1343.32405583,0.00010858,2]
[422563691,1779086509000,842.86,0.000178,120]
[422563780,1779087031000,-310.38789491,0.0001008,2]
[422563765,1779087031000,-5000.0,9.877e-05,2]
[422563769,1779087031000,-247.0301859,0.00010078,2]
[422563767,1779087031000,-348.94442072,0.00010028,2]
[422563771,1779087031000,-69.48308821,0.00010079,2]
[422563778,1779087031000,-151.0,0.0001008,2]
[422563776,1779087031000,-325.9226287,0.0001008,2]
[422563788,1779087031000,-325.9226287,0.00010092,2]
[422563782,1779087031000,-165.96639689,0.0001008,2]
[422563784,1779087031000,-325.9226287,0.0001008,2]
[422563775,1779087031000,-325.9226287,0.0001008,2]
[422563786,1779087031000,-325.9226287,0.00010092,2]
[422563790,1779087031000,-325.9226287,0.00010092,2]
[422563792,1779087031000,-456.5585625,0.00010092,2]
[422563794,1779087031000,-160.0,0.00010745,2]
[422563773,1779087031000,-230.51691179,0.00010079,2]
[422563800,1779087032000,-1817.92069431,0.00010755,2]
[422563803,1779087032000,-185.0,0.00010823,2]
[422563807,1779087032000,-8841.28263055,0.00010854,2]
[422563797,1779087032000,-161.68513202,0.00010746,2]
[422563814,1779087032000,-759.72402189,0.00010854,2]
[422563810,1779087032000,-10401.6444003,0.00010854,2]
[422563866,1779087038000,-2229.11045898,0.00010854,2]
[422563867,1779087038000,-417.27455435,0.00010854,2]
[422563864,1779087038000,-2477.04716169,0.00010745,2]
[422563865,1779087038000,-2522.95283831,0.00010745,2]
[422563868,1779087040000,-700.05161533,0.00010854,2]
[422563870,1779087040000,-6625.51755511,0.00010854,2]
[422563869,1779087040000,-3250.67284012,0.00010854,2]
[422563907,1779087043000,-462.0561729,0.00010854,2]
[422563909,1779087043000,-469.72192337,0.00010854,2]
[422563903,1779087043000,-500.0,0.00010854,2]
[422563911,1779087043000,-918.61775077,0.00010855,2]
[422563905,1779087043000,-500.0,0.00010854,2]
[422563913,1779087043000,-918.61775077,0.00010855,2]
[422563915,1779087043000,-931.28834043,0.00010855,2]
[422563928,1779087043000,-47.69004965,0.00010855,2]
[422563922,1779087043000,-931.28834043,0.00010855,2]
[422563918,1779087043000,-931.28834043,0.00010855,2]
[422563916,1779087043000,-931.28834043,0.00010855,2]
[422563924,1779087043000,-931.28834043,0.00010855,2]
[422563920,1779087043000,-931.28834043,0.00010855,2]
[422563926,1779087043000,-931.28834043,0.00010855,2]
[422563914,1779087043000,-167.26387839,0.00010855,2]
[422563952,1779087046000,-883.59829078,0.00010855,2]
[422563956,1779087046000,-931.28834043,0.00010855,2]
[422563954,1779087046000,-931.28834043,0.00010855,2]
[422563958,1779087046000,-622.7075357,0.00010855,2]
[422563963,1779087047000,-931.28834043,0.00010855,2]
[422563970,1779087047000,-953.86502748,0.00010855,2]
[422563962,1779087047000,-931.28834043,0.00010855,2]
[422563961,1779087047000,-931.28834043,0.00010855,2]
[422563960,1779087047000,-308.58080473,0.00010855,2]
[422563967,1779087047000,-953.86502748,0.00010855,2]
[422563971,1779087047000,-953.86502748,0.00010855,2]
[422563964,1779087047000,-953.86502748,0.00010855,2]
[422563966,1779087047000,-953.86502748,0.00010855,2]
[422563968,1779087047000,-953.86502748,0.00010855,2]
[422563969,1779087047000,-953.86502748,0.00010855,2]
[422563972,1779087047000,-769.8267766,0.00010856,2]
[422563965,1779087047000,-953.86502748,0.00010855,2]
[422563975,1779087226000,1875.35,0.00017808,120]
[422563998,1779087922000,-283.60329296,7.6e-05,2]
[422563999,1779087924000,-1020.42521185,7.6e-05,2]
[422564121,1779088232000,-1200.0,7.374e-05,2]
[422564114,1779088232000,-300.0,7.374e-05,2]
[422564118,1779088232000,-300.0,7.374e-05,2]
[422564115,1779088232000,-300.0,7.374e-05,2]
[422564112,1779088232000,-300.0,7.374e-05,2]
[422564105,1779088232000,-3483.10722311,7.156e-05,2]
[422564108,1779088232000,-1020.42521185,7.301e-05,2]
[422564107,1779088232000,-5000.0,7.228e-05,2]
[422564125,1779088232000,-420.0,8.111e-05,2]
[422564103,1779088232000,-464.89277689,7.156e-05,2]
[422564097,1779088232000,-1052.0,7.156e-05,2]
[422564110,1779088232000,-348.20839438,7.338e-05,2]
[422564126,1779088232000,-765.70166583,8.6e-05,2]
[422564123,1779088232000,-5541.21316329,7.6e-05,2]
[422564128,1779088232000,-250.0,8.68e-05,2]
[422564153,1779088232000,-410.29608647,0.000102,2]
[422564155,1779088232000,-184.17318662,0.00010227,2]
[422564160,1779088232000,-15923.70626561,0.00010228,2]
[422564157,1779088232000,-15767.19765165,0.00010228,2]
[422564151,1779088232000,-410.29608647,0.000101,2]
[422564140,1779088232000,-152.6926396,0.00010095,2]
[422564143,1779088232000,-325.9226287,0.00010095,2]
[422564138,1779088232000,-151.0,0.00010095,2]
[422564137,1779088232000,-535.3269988,0.00010087,2]
[422564135,1779088232000,-410.29608647,0.0001,2]
[422564133,1779088232000,-161.68513202,9.997e-05,2]
[422564131,1779088232000,-160.0,9.997e-05,2]
[422564142,1779088232000,-151.0,0.00010095,2]
[422564130,1779088232000,-410.88590537,9.338e-05,2]
[422564242,1779088238000,-162.45068588,0.00010227,2]
[422564243,1779088238000,-4444.27160122,0.00010228,2]
[422564289,1779088243000,-3316.75,0.00010125,2]
[422564292,1779088246000,-353.02351063,0.00010125,2]
[422564293,1779088246000,-9445.95611244,0.00010228,2]
[422564294,1779088247000,-7997.93336337,0.00010228,2]
[422564295,1779088247000,-1366.14924598,0.000103,2]
[422564296,1779088247000,-3081.37549406,0.000103,2]
[422564298,1779088247000,-224.41382677,0.000103,2]
[422564297,1779088247000,-227.96074808,0.000103,2]
[422564308,1779088247000,-727.24465097,0.00010427,2]
[422564301,1779088247000,-323.034,0.00010327,2]
[422564299,1779088247000,-410.29608647,0.000103,2]
[422564303,1779088247000,-6739.60928956,0.00010387,2]
[422564300,1779088247000,-327.0,0.00010326,2]
[422564302,1779088247000,-500.0,0.00010327,2]
[422564304,1779088247000,-924.31392365,0.00010387,2]
[422564309,1779088247000,-727.24465097,0.00010427,2]
[422564310,1779088247000,-727.24465097,0.00010427,2]
[422564307,1779088247000,-727.24465097,0.00010427,2]
[422564306,1779088247000,-727.24465097,0.00010427,2]
[422564320,1779088247000,-2777.927385,0.00010428,2]
[422564318,1779088247000,-2959.66,0.00010428,2]
[422564316,1779088247000,-727.24465097,0.00010427,2]
[422564317,1779088247000,-29915.69882921,0.00010428,2]
[422564319,1779088247000,-3726.0053835,0.00010428,2]
[422564312,1779088247000,-727.24465097,0.00010427,2]
[422564311,1779088247000,-727.24465097,0.00010427,2]
[422564315,1779088247000,-727.24465097,0.00010427,2]
[422564305,1779088247000,-410.29608647,0.000104,2]
[422564314,1779088247000,-727.24465097,0.00010427,2]
[422564313,1779088247000,-727.24465097,0.00010427,2]
[422564434,1779089432000,-160.0,9.993e-05,2]
[422564452,1779089432000,-597.58965991,0.00010327,2]
[422564450,1779089432000,-707.24773936,0.00010327,2]
[422564448,1779089432000,-305.558,0.000103,2]
[422564444,1779089432000,-492.76013053,0.000103,2]
[422564446,1779089432000,-224.05637886,0.000103,2]
[422564432,1779089432000,-224.5964076,9.789e-05,2]
[422564437,1779089432000,-300.0,0.00010299,2]
[422564428,1779089432000,-339.30514526,8.842e-05,2]
[422564441,1779089432000,-26.90312634,0.000103,2]
[422564439,1779089432000,-255.06769786,0.000103,2]
[422564436,1779089432000,-161.68513202,9.993e-05,2]
[422564462,1779089432000,-707.24773936,0.00010327,2]
[422564426,1779089432000,-645.64336112,8.797e-05,2]
[422564423,1779089432000,-4233.48182613,8.797e-05,2]
[422564430,1779089432000,-283.60230974,8.886e-05,2]
[422564463,1779089432000,-261.48070752,0.00010327,2]
[422564460,1779089432000,-707.24773936,0.00010327,2]
[422564466,1779089432000,-445.76703184,0.00010327,2]
[422564540,1779089432000,-707.24773936,0.00010327,2]
[422564525,1779089432000,-707.24773936,0.00010327,2]
[422564538,1779089432000,-707.24773936,0.00010327,2]
[422564523,1779089432000,-707.24773936,0.00010327,2]
[422564454,1779089432000,-109.65807945,0.00010327,2]
[422564529,1779089432000,-707.24773936,0.00010327,2]
[422564527,1779089432000,-707.24773936,0.00010327,2]
[422564535,1779089432000,-707.24773936,0.00010327,2]
[422564533,1779089432000,-707.24773936,0.00010327,2]
[422564531,1779089432000,-707.24773936,0.00010327,2]
[422564521,1779089432000,-73.43310209,0.00010327,2]
[422564470,1779089432000,-633.81463727,0.00010327,2]
[422564458,1779089432000,-707.24773936,0.00010327,2]
[422564468,1779089432000,-707.24773936,0.00010327,2]
[422564456,1779089432000,-198.46299495,0.00010327,2]
[422564537,1779089432000,-707.24773936,0.00010327,2]
[422564544,1779089433000,-469.75265067,0.00010327,2]
[422564542,1779089433000,-707.24773936,0.00010327,2]
[422564573,1779089438000,-777.9725133,0.00010327,2]
[422564574,1779089438000,-777.9725133,0.00010327,2]
[422564571,1779089438000,-237.49508869,0.00010327,2]
[422564572,1779089438000,-707.24773936,0.00010327,2]
[422564576,1779089438000,-777.9725133,0.00010327,2]
[422564577,1779089438000,-777.9725133,0.00010327,2]
[422564578,1779089438000,-777.9725133,0.00010327,2]
[422564579,1779089438000,-777.9725133,0.00010327,2]
[422564581,1779089438000,-18422.7982551,0.00010328,2]
[422564580,1779089438000,-777.9725133,0.00010327,2]
[422564575,1779089438000,-777.9725133,0.00010327,2]
[422564649,1779089443000,-10938.71562326,0.00010328,2]
[422564705,1779089446000,-1273.1193079,0.00010328,2]
[422564703,1779089446000,-334.38661605,0.00010225,2]
[422564701,1779089446000,-288.87684538,0.00010225,2]
[422564709,1779089447000,-1730.07383656,0.00010328,2]
[422564708,1779089447000,-1064.0,0.00010328,2]
[422564794,1779090632000,-499.99999999,9.326e-05,2]
[422564782,1779090632000,-2730.04736535,8.967e-05,2]
[422564780,1779090632000,-1101.13802739,8.967e-05,2]
[422564790,1779090632000,-112.09303576,8.967e-05,2]
[422564788,1779090632000,-433.45811007,8.967e-05,2]
[422564792,1779090632000,-419.76634334,9.058e-05,2]
[422564796,1779090632000,-11.17042568,9.334e-05,2]
[422564952,1779090644000,-259.015,0.00010119,2]
[422564953,1779090644000,-500.0,0.00010127,2]
[422564949,1779090644000,-1590.68060753,0.00010083,2]
[422564950,1779090644000,-439.02,0.00010114,2]
[422564954,1779090644000,-152.01535541,0.00010127,2]
[422564955,1779090644000,-500.0,0.00010127,2]
[422564962,1779090644000,-500.0,0.00010127,2]
[422564963,1779090644000,-500.0,0.00010127,2]
[422564961,1779090644000,-500.0,0.00010127,2]
[422564971,1779090644000,-500.0,0.00010127,2]
[422564964,1779090644000,-500.0,0.00010127,2]
[422564965,1779090644000,-500.0,0.00010127,2]
[422564966,1779090644000,-500.0,0.00010127,2]
[422564959,1779090644000,-500.0,0.00010127,2]
[422564960,1779090644000,-500.0,0.00010127,2]
[422564938,1779090644000,-300.0,9.523e-05,2]
[422564935,1779090644000,-338.67210649,9.381e-05,2]
[422564947,1779090644000,-160.0,0.00010044,2]
[422564968,1779090644000,-500.0,0.00010127,2]
[422564934,1779090644000,-188.82957432,9.334e-05,2]
[422564945,1779090644000,-200.0,9.913e-05,2]
[422564937,1779090644000,-300.0,9.523e-05,2]
[422564946,1779090644000,-200.0,9.913e-05,2]
[422564941,1779090644000,-200.0,9.716e-05,2]
[422564951,1779090644000,-200.0,0.00010114,2]
[422564942,1779090644000,-200.0,9.716e-05,2]
[422564939,1779090644000,-300.0,9.523e-05,2]
[422564940,1779090644000,-200.0,9.716e-05,2]
[422564943,1779090644000,-200.0,9.716e-05,2]
[422564948,1779090644000,-161.68513202,0.00010044,2]
[422564957,1779090644000,-500.0,0.00010127,2]
[422564956,1779090644000,-253.71552879,0.00010127,2]
[422564936,1779090644000,-200.0,9.523e-05,2]
[422564967,1779090644000,-500.0,0.00010127,2]
[422564944,1779090644000,-500.0,9.817e-05,2]
[422564972,1779090644000,-500.0,0.00010127,2]
[422564989,1779090644000,-500.0,0.00010127,2]
[422564994,1779090644000,-500.0,0.00010127,2]
[422564992,1779090644000,-500.0,0.00010127,2]
[422564995,1779090644000,-500.0,0.00010127,2]
[422564993,1779090644000,-500.0,0.00010127,2]
[422564997,1779090644000,-500.0,0.00010127,2]
[422564996,1779090644000,-500.0,0.00010127,2]
[422564999,1779090644000,-500.0,0.00010127,2]
[422565001,1779090644000,-626.24617367,0.00010127,2]
[422565000,1779090644000,-500.0,0.00010127,2]
[422565003,1779090644000,-2531.00861157,0.00010128,2]
[422564998,1779090644000,-500.0,0.00010127,2]
[422565004,1779090644000,-10731.91056757,0.00010128,2]
[422565002,1779090644000,-500.0,0.00010127,2]
[422564969,1779090644000,-567.20134263,0.00010127,2]
[422564991,1779090644000,-500.0,0.00010127,2]
[422564990,1779090644000,-500.0,0.00010127,2]
[422564958,1779090644000,-500.0,0.00010127,2]
[422564987,1779090644000,-500.0,0.00010127,2]
[422564970,1779090644000,-500.0,0.00010127,2]
[422564974,1779090644000,-500.0,0.00010127,2]
[422564984,1779090644000,-500.0,0.00010127,2]
[422564985,1779090644000,-500.0,0.00010127,2]
[422564973,1779090644000,-500.0,0.00010127,2]
[422564986,1779090644000,-500.0,0.00010127,2]
[422564976,1779090644000,-500.0,0.00010127,2]
[422564988,1779090644000,-500.0,0.00010127,2]
[422564977,1779090644000,-500.0,0.00010127,2]
[422564980,1779090644000,-500.0,0.00010127,2]
[422564982,1779090644000,-500.0,0.00010127,2]
[422564978,1779090644000,-500.0,0.00010127,2]
[422564979,1779090644000,-500.0,0.00010127,2]
[422564981,1779090644000,-500.0,0.00010127,2]
[422564983,1779090644000,-500.0,0.00010127,2]
[422564975,1779090644000,-500.0,0.00010127,2]
[422565024,1779090647000,-3811.21130565,0.00010128,2]
[422565048,1779091231000,200.0,0.00014611,120]
[422565050,1779091292000,-5000.0,9.621e-05,2]
[422565051,1779091350000,200.0,0.00013826,120]
[422565053,1779091411000,200.0,0.00014398,120]
[422565098,1779091470000,200.0,0.00015811,120]
[422565119,1779091770000,200.0,0.00017004,120]
[422565120,1779091830000,200.0,0.0001754,120]
[422565165,1779091832000,-200.59,9.424e-05,7]
[422565161,1779091832000,-151.0,9.33e-05,2]
[422565167,1779091832000,-3835.03311338,9.43e-05,2]
[422565163,1779091832000,-200.0,9.424e-05,2]
[422565326,1779091838000,-1164.96688662,9.43e-05,2]
[422565327,1779091839000,-338.27080659,9.573e-05,2]
[422565331,1779091839000,-21627.03276617,9.928e-05,2]
[422565330,1779091839000,-300.0,9.927e-05,2]
[422565332,1779091839000,-3735.16487972,9.928e-05,2]
[422565329,1779091839000,-1391.84553158,9.927e-05,2]
[422565328,1779091839000,-311.85610176,9.817e-05,2]
[422565360,1779091841000,-5305.70864763,9.928e-05,2]
[422565361,1779091841000,-4527.33324191,9.928e-05,2]
[422565410,1779091844000,-893.45232,9.928e-05,2]
[422565405,1779091844000,-819.30227355,9.928e-05,2]
[422565404,1779091844000,-1598.04860122,9.928e-05,2]
[422565408,1779091844000,-271.00455549,9.928e-05,2]
[422565406,1779091844000,-359.66901507,9.928e-05,2]
[422565409,1779091844000,-396.54944253,9.928e-05,2]
[422565407,1779091844000,-6737.03391632,9.928e-05,2]
[422565475,1779091847000,-4903.28765284,9.928e-05,2]
[422565479,1779091847000,-1347.52501252,9.928e-05,2]
[422565473,1779091847000,-20365.83061569,9.928e-05,2]
[422565481,1779091847000,-1117.28356973,9.928e-05,2]
[422565471,1779091847000,-129776.12785484,9.928e-05,2]
[422565435,1779091847000,-5064.35616059,9.928e-05,2]
[422565553,1779091950000,200.0,0.00016452,120]
[422565554,1779092024000,162.00977037,0.000175,120]
[422565556,1779092070000,200.0,0.00016626,120]
[422565558,1779092130000,200.0,0.00016967,120]
[422565560,1779092250000,200.0,0.00017622,120]
[422565563,1779092430000,200.0,0.00016916,120]
[422565564,1779092490000,200.0,0.00016813,120]
[422565567,1779092610000,200.0,0.00017481,120]
[422565568,1779092670000,200.0,0.0001671,120]
[422565571,1779092730000,200.0,0.00017598,120]
[422565639,1779093032000,-1776.14203181,8.614e-05,2]
[422565644,1779093032000,-9.00835722,9.651e-05,2]
[422565643,1779093032000,-339.05579342,8.834e-05,2]
[422565640,1779093032000,-452.0,8.701e-05,2]
[422565758,1779093045000,-240.99164278,9.651e-05,2]
[422565759,1779093045000,-120.04244292,9.817e-05,2]
[422565793,1779093046000,-500.0,0.00010065,2]
[422565763,1779093046000,-379.95755708,9.817e-05,2]
[422565770,1779093046000,-156.81697334,0.00010026,2]
[422565771,1779093046000,-164.67961256,0.00010026,2]
[422565765,1779093046000,-152.0,9.963e-05,2]
[422565764,1779093046000,-3068.3058034,9.91e-05,2]
[422565772,1779093046000,-248.84023174,0.00010026,2]
[422565767,1779093046000,-161.68513202,9.995e-05,2]
[422565769,1779093046000,-300.0,0.00010025,2]
[422565768,1779093046000,-175.08997829,0.00010002,2]
[422565773,1779093046000,-152.0,0.00010033,2]
[422565774,1779093046000,-543.11802766,0.00010065,2]
[422565776,1779093046000,-161.47821125,0.00010065,2]
[422565777,1779093046000,-500.0,0.00010065,2]
[422565778,1779093046000,-500.0,0.00010065,2]
[422565766,1779093046000,-160.0,9.995e-05,2]
[422565780,1779093046000,-500.0,0.00010065,2]
[422565788,1779093046000,-500.0,0.00010065,2]
[422565792,1779093046000,-216.64127513,0.00010065,2]
[422565789,1779093046000,-500.0,0.00010065,2]
[422565794,1779093046000,-500.0,0.00010065,2]
[422565790,1779093046000,-500.0,0.00010065,2]
[422565791,1779093046000,-500.0,0.00010065,2]
[422565779,1779093046000,-500.0,0.00010065,2]
[422565786,1779093046000,-500.0,0.00010065,2]
[422565785,1779093046000,-500.0,0.00010065,2]
[422565782,1779093046000,-500.0,0.00010065,2]
[422565775,1779093046000,-500.0,0.00010065,2]
[422565781,1779093046000,-500.0,0.00010065,2]
[422565783,1779093046000,-500.0,0.00010065,2]
[422565784,1779093046000,-500.0,0.00010065,2]
[422565787,1779093046000,-500.0,0.00010065,2]
[422565796,1779093047000,-343.00713925,0.00010065,2]
[422565797,1779093047000,-500.0,0.00010065,2]
[422565795,1779093047000,-500.0,0.00010065,2]
[422565800,1779093047000,-3762.14750826,0.00010066,2]
[422565799,1779093047000,-500.0,0.00010065,2]
[422565798,1779093047000,-643.08416811,0.00010065,2]
[422565899,1779094233000,-768.66651364,9.008e-05,2]
[422566085,1779094238000,-885.55902486,9.008e-05,2]
[422566197,1779094246000,-599.60298507,0.00010125,2]
[422566185,1779094246000,-161.68513202,9.996e-05,2]
[422566178,1779094246000,-151.0,9.284e-05,2]
[422566182,1779094246000,-152.0,9.937e-05,2]
[422566181,1779094246000,-837.3935161,9.922e-05,2]
[422566188,1779094246000,-152.0,0.00010012,2]
[422566177,1779094246000,-151.0,9.284e-05,2]
[422566180,1779094246000,-456.5585623,9.293e-05,2]
[422566172,1779094246000,-5000.0,8.918e-05,2]
[422566176,1779094246000,-282.0,9.19e-05,2]
[422566174,1779094246000,-339.16971295,9.145e-05,2]
[422566183,1779094246000,-537.6845,9.96e-05,2]
[422566173,1779094246000,-3286.37212313,9.008e-05,2]
[422566184,1779094246000,-152.0,9.963e-05,2]
[422566179,1779094246000,-151.0,9.284e-05,2]
[422566196,1779094246000,-323.8297419,0.00010115,2]
[422566175,1779094246000,-300.0,9.19e-05,2]
[422566187,1779094246000,-1000.0,0.0001,10]
[422566190,1779094246000,-557.5788265,0.00010015,2]
[422566204,1779094246000,-238.12046312,0.00010199,2]
[422566203,1779094246000,-315.88968214,0.00010199,2]
[422566206,1779094246000,-15125.65305619,0.000102,2]
[422566205,1779094246000,-1000.0,0.000102,2]
[422566202,1779094246000,-246.29347501,0.00010199,2]
[422566201,1779094246000,-500.0,0.00010199,2]
[422566200,1779094246000,-249.19983033,0.00010194,2]
[422566186,1779094246000,-160.0,9.996e-05,2]
[422566198,1779094246000,-170.22636778,0.0001018,2]
[422566199,1779094246000,-621.78829552,0.0001018,2]
[422566191,1779094246000,-578.20924308,0.0001007,2]
[422566195,1779094246000,-151.9315249,0.00010115,2]
[422566189,1779094246000,-152.0,0.00010012,2]
[422566192,1779094246000,-170.22636779,0.00010106,2]
[422566194,1779094246000,-152.0,0.0001011,7]
[422566193,1779094246000,-152.0,0.00010106,7]
[422566207,1779094247000,-1831.66948229,0.000102,2]
[422566214,1779094567000,200.0,0.000178,120]
[422566215,1779094602000,160.0,0.000177,120]
[422566218,1779094873000,-5000.0,9.326e-05,2]
[422566219,1779094890000,-339.30152644,9.422e-05,2]
[422566220,1779094908000,-152.0,9.424e-05,7]
[422566221,1779094924000,-152.0,9.424e-05,7]
[422566222,1779094942000,-152.0,9.428e-05,7]
[422566223,1779094959000,-176.84523972,9.563e-05,2]
[422566224,1779094976000,-152.0,9.938e-05,2]
[422566228,1779095189000,297.736,0.00017808,120]
[422566269,1779095433000,-931.85262945,8.759e-05,2]
[422566271,1779095433000,-604.25309705,8.759e-05,2]
[422566260,1779095433000,-909.41626546,8.5e-05,7]
[422566264,1779095433000,-1051.1267904,8.759e-05,2]
[422566262,1779095433000,-1285.58054027,8.759e-05,2]
[422566417,1779095438000,-321.51781392,8.759e-05,2]
[422567215,1779095446000,-160.0,0.00010057,2]
[422567212,1779095446000,-152.0,9.837e-05,7]
[422567213,1779095446000,-152.0,9.993e-05,2]
[422567206,1779095446000,-262.108369,8.671e-05,2]
[422567210,1779095446000,-159.16071575,9.562e-05,2]
[422567214,1779095446000,-161.68513202,0.00010057,2]
[422567211,1779095446000,-152.0,9.837e-05,7]
[422567207,1779095446000,-805.66912891,8.759e-05,2]
[422567208,1779095446000,-332.51549591,8.936e-05,2]
[422567209,1779095446000,-176.8457328,9.1e-05,2]
[422567216,1779095446000,-886.42744205,0.00010058,2]
[422567312,1779096633000,-401.75394198,8.441e-05,2]
[422567311,1779096633000,-459.72207511,8.441e-05,2]
[422567516,1779096643000,-500.0,9.428e-05,2]
[422567501,1779096643000,-437.613369,8.526e-05,2]
[422567500,1779096643000,-4138.52398291,8.441e-05,2]
[422567502,1779096643000,-339.45456237,8.656e-05,2]
[422567512,1779096643000,-500.0,9.428e-05,2]
[422567504,1779096643000,-604.19843337,9.129e-05,2]
[422567503,1779096643000,-176.8457328,8.696e-05,2]
[422567505,1779096643000,-1129.92835411,9.229e-05,2]
[422567511,1779096643000,-237.57528885,9.427e-05,2]
[422567509,1779096643000,-1655.65827486,9.329e-05,2]
[422567506,1779096643000,-1190.0,9.295e-05,2]
[422567507,1779096643000,-325.9226287,9.296e-05,2]
[422567510,1779096643000,-32.42471115,9.427e-05,2]
[422567514,1779096643000,-500.0,9.428e-05,2]
[422567513,1779096643000,-500.0,9.428e-05,2]
[422567515,1779096643000,-500.0,9.428e-05,2]
[422567508,1779096643000,-300.0,9.328e-05,2]
[422567523,1779096644000,-643.68,9.428e-05,2]
[422567531,1779096644000,-557.5788265,9.754e-05,2]